fUST/lending_fUST_20250808
["ID","MTS","AMOUNT","RATE_DAILY","PERIOD"]
[377947094,1754623856496,-1506.06,0.00024105,2]
[377947095,1754623856508,-460.0,0.00024105,2]
[377947096,1754623856518,-192.86429566,0.00024105,2]
[377947097,1754623856529,-879.91570434,0.00024105,2]
[377947098,1754623856539,-585.7,0.00024105,2]
[377947099,1754623856549,-707.27,0.00024105,2]
[377947100,1754623856559,-742.32,0.00024108,2]
[377947101,1754623856569,-234.0,0.00024109,2]
[377947102,1754623856578,-460.0,0.00024109,2]
[377947103,1754623856588,-340.76,0.00024109,2]
[377947104,1754623856597,-1043.51,0.00024109,2]
[377947105,1754623856607,-501.14,0.00024109,2]
[377947106,1754623856616,-615.69,0.00024109,2]
[377947107,1754623856626,-460.0,0.00024109,2]
[377947108,1754623856635,-460.0,0.00024109,2]
[377947109,1754623856644,-460.0,0.00024109,2]
[377947110,1754623856654,-460.0,0.00024109,2]
[377947111,1754623856663,-460.0,0.00024109,2]
[377947112,1754623856672,-460.0,0.00024109,2]
[377947113,1754623856682,-477.45,0.00024109,2]
[377947114,1754623856691,-779.59,0.00024109,2]
[377947115,1754623856700,-460.0,0.00024109,2]
[377947116,1754623856710,-409.93235121,0.00024109,2]
[377947117,1754623856800,-460.0,0.00022185,2]
[377947118,1754623856810,-460.0,0.00022459,2]
[377947119,1754623856819,-863.59192176,0.00022866,2]
[377947120,1754623856829,-151.0,0.00023448,2]
[377947121,1754623856838,-151.0,0.00023448,2]
[377947122,1754623856847,-168.84642289,0.00023448,2]
[377947123,1754623856856,-460.0,0.00023561,2]
[377947124,1754623856866,-460.0,0.00023835,2]
[377947125,1754623856875,-50.06764879,0.00024109,2]
[377947126,1754623856884,-460.0,0.00024109,2]
[377947127,1754623856894,-460.0,0.00024109,2]
[377947128,1754623856905,-401.97,0.00024109,2]
[377947129,1754623856914,-460.0,0.00024109,2]
[377947130,1754623856923,-510.91,0.00024109,2]
[377947131,1754623856932,-460.0,0.00024109,2]
[377947132,1754623856941,-2000.0,0.00024126,3]
[377947133,1754623856950,-1915.61400656,0.00024149,2]
[377947134,1754623857147,-461.55521952,0.00021917,2]
[377947135,1754623857156,-462.75412994,0.00021917,2]
[377947136,1754623857165,-460.37834336,0.00021917,2]
[377947137,1754623857174,-465.41346169,0.00021917,2]
[377947138,1754623857183,-819.42,0.00022177,3]
[377947139,1754623857199,-151.245391,0.00022459,7]
[377947140,1754623857208,-151.0,0.00023288,7]
[377947141,1754623857218,-151.0,0.00023288,7]
[377947142,1754623857228,-245.0,0.00023288,7]
[377947143,1754623857237,-863.59192176,0.00023371,2]
[377947144,1754623857246,-1638.84,0.00023547,3]
[377947145,1754623857255,-863.59192176,0.00023875,2]
[377947146,1754623857264,-460.0,0.00024109,2]
[377947147,1754623857273,-3972.38599344,0.00024149,2]
[377947148,1754623857282,-172.806155,0.00024149,7]
[377947149,1754623857291,-151.0,0.00024149,7]
[377947150,1754623857300,-151.0,0.00024149,7]
[377947151,1754623857313,-1758.0,0.00024157,3]
[377947152,1754623857322,-160.0,0.00024157,3]
[377947153,1754623857331,-1758.0,0.00024157,3]
[377947154,1754623857340,-160.0,0.00024157,3]
[377947155,1754623857351,-1758.0,0.00024157,3]
[377947156,1754623857461,-1758.0,0.00024157,3]
[377947157,1754623857470,-152.0,0.00024157,3]
[377947158,1754623857479,-1758.0,0.00024157,3]
[377947159,1754623857488,-1758.0,0.00024157,3]
[377947160,1754623857498,-152.0,0.00024157,3]
[377947161,1754623857506,-1758.0,0.00024157,3]
[377947162,1754623857515,-1758.0,0.00024157,3]
[377947163,1754623857524,-152.0,0.00024157,3]
[377947164,1754623857533,-1758.0,0.00024157,3]
[377947165,1754623857542,-152.0,0.00024157,3]
[377947166,1754623857551,-1758.0,0.00024157,3]
[377947167,1754623857560,-1758.0,0.00024157,3]
[377947168,1754623857568,-1758.0,0.00024157,3]
[377947169,1754623857577,-1758.0,0.00024157,3]
[377947170,1754623857587,-155.0,0.00024157,3]
[377947171,1754623857595,-1758.0,0.00024157,3]
[377947172,1754623857604,-155.0,0.00024157,3]
[377947173,1754623857613,-1758.0,0.00024157,3]
[377947174,1754623857622,-155.0,0.00024157,3]
[377947175,1754623857631,-155.0,0.00024157,3]
[377947176,1754623857639,-1758.0,0.00024157,3]
[377947177,1754623857648,-155.0,0.00024157,3]
[377947178,1754623857658,-2000.0,0.00024188,3]
[377947179,1754623857667,-151.0,0.00024188,7]
[377947180,1754623857680,-309.858582,0.00024188,7]
[377947181,1754623857690,-309.858582,0.00024188,7]
[377947182,1754623857700,-160.54832287,0.00024199,2]
[377947183,1754623857709,-742.32,0.00024199,2]
[377947184,1754623857718,-151.0,0.000242,7]
[377947185,1754623857728,-152.188793,0.000242,7]
[377947186,1754623857736,-151.388052,0.000242,7]
[377947187,1754623857746,-151.0,0.000242,7]
[377947188,1754623857755,-151.0,0.000242,7]
[377947189,1754623857764,-151.0,0.000242,7]
[377947190,1754623857773,-151.0,0.000242,7]
[377947191,1754623857782,-151.0,0.000242,7]
[377947192,1754623857791,-151.0,0.000242,7]
[377947193,1754623857800,-1380.021677,0.000242,7]
[377947194,1754623857809,-151.0,0.000242,7]
[377947195,1754623857818,-151.0,0.000242,7]
[377947196,1754623857827,-759.15,0.000242,6]
[377947197,1754623857836,-179.1374617,0.000242,6]
[377947198,1754623857845,-1109.74579444,0.00024217,2]
[377947199,1754623857855,-151.0,0.00024277,7]
[377947200,1754623857864,-151.0,0.00024277,7]
[377947201,1754623857874,-151.0,0.00024277,7]
[377947202,1754623857883,-306.062547,0.00024277,7]
[377947203,1754623857892,-306.062547,0.00024277,7]
[377947204,1754623857902,-742.32,0.00024278,2]
[377947205,1754623857911,-151.0,0.0002428,7]
[377947206,1754623857920,-5888.0,0.00024293,2]
[377947207,1754623857929,-742.32,0.00024295,2]
[377947208,1754623857938,-742.32,0.00024295,2]
[377947209,1754623857948,-742.32,0.00024295,2]
[377947210,1754623857958,-742.32,0.00024295,2]
[377947211,1754623857967,-742.33361603,0.00024295,2]
[377947212,1754623857977,-151.0,0.00024296,7]
[377947213,1754623857986,-151.0,0.00024296,7]
[377947214,1754623857996,-151.0,0.00024296,7]
[377947215,1754623858005,-151.0,0.00024296,7]
[377947216,1754623858014,-151.0,0.00024296,7]
[377947217,1754623858023,-151.892906,0.00024296,7]
[377947218,1754623858033,-151.0,0.00024296,7]
[377947219,1754623858042,-306.062547,0.00024296,7]
[377947220,1754623858051,-306.062547,0.00024296,7]
[377947221,1754623858061,-180.146236,0.00024296,7]
[377947222,1754623858073,-180.146236,0.00024296,7]
[377947223,1754623858085,-151.0,0.00024296,7]
[377947224,1754623858095,-4000.0,0.00024296,3]
[377947225,1754623858104,-151.0,0.000243,7]
[377947226,1754623858114,-160.0,0.000243,7]
[377947227,1754623858124,-309.858582,0.00024316,7]
[377947228,1754623858133,-309.858591,0.00024316,7]
[377947229,1754623858142,-2000.0,0.00024316,2]
[377947230,1754623858152,-2000.0,0.00024316,2]
[377947231,1754623858162,-554.33022379,0.00024316,2]
[377947232,1754623858171,-2000.0,0.00024316,2]
[377947233,1754623858181,-1504.95214984,0.00024316,2]
[377947234,1754623858191,-1244.0,0.00024321,2]
[377947235,1754623858201,-1000.0,0.00024348,2]
[377947236,1754623858210,-1000.0,0.00024348,2]
[377947237,1754623858219,-1000.0,0.00024348,2]
[377947238,1754623858229,-2500.0,0.00024364,2]
[377947239,1754623858239,-511.82032206,0.00024364,2]
[377947240,1754623858249,-874.57,0.00024375,2]
[377947241,1754623858259,-460.0,0.00024375,2]
[377947242,1754623858269,-1393.1,0.00024375,2]
[377947243,1754623858279,-3997.55,0.00024375,2]
[377947244,1754623858289,-460.0,0.00024375,2]
[377947245,1754623858299,-460.0,0.00024375,2]
[377947246,1754623858309,-466.28,0.00024375,2]
[377947247,1754623858319,-1844.01,0.00024377,2]
[377947248,1754623858329,-963.67,0.00024377,2]
[377947249,1754623858338,-460.0,0.00024377,2]
[377947250,1754623858347,-1016.62,0.00024377,2]
[377947251,1754623858359,-460.0,0.00024377,2]
[377947252,1754623858368,-460.0,0.00024377,2]
[377947253,1754623858377,-2210.65,0.00024377,2]
[377947254,1754623858389,-1381.43,0.00024377,2]
[377947255,1754623858399,-460.0,0.00024377,2]
[377947256,1754623858408,-634.93,0.00024377,2]
[377947257,1754623858417,-1146.4,0.00024377,2]
[377947258,1754623858426,-460.0,0.00024377,2]
[377947259,1754623858435,-151.0,0.00024378,7]
[377947260,1754623858446,-460.0,0.00024378,2]
[377947261,1754623858456,-460.0,0.00024378,2]
[377947262,1754623858466,-460.0,0.00024378,2]
[377947263,1754623858476,-460.0,0.00024378,2]
[377947264,1754623858487,-460.0,0.00024378,2]
[377947265,1754623858496,-548.36,0.00024378,2]
[377947266,1754623858505,-460.0,0.00024378,2]
[377947267,1754623858515,-460.0,0.00024379,2]
[377947268,1754623858524,-485.14,0.00024379,2]
[377947269,1754623858534,-2135.72,0.00024379,2]
[377947270,1754623858543,-1506.06,0.00024379,2]
[377947271,1754623858553,-460.0,0.00024379,2]
[377947272,1754623858562,-1072.78,0.00024379,2]
[377947273,1754623858572,-585.7,0.00024379,2]
[377947274,1754623858581,-707.27,0.00024379,2]
[377947275,1754623858591,-151.0,0.0002438,7]
[377947276,1754623858601,-151.0,0.0002438,7]
[377947277,1754623858610,-11198.48181844,0.0002438,2]
[377947278,1754623858619,-863.59192176,0.0002438,2]
[377947279,1754623858629,-195.07,0.00024381,2]
[377947280,1754623858638,-150.077,0.00024381,2]
[377947281,1754623858648,-150.0,0.00024381,2]
[377947282,1754623858657,-150.075,0.00024381,2]
[377947283,1754623858666,-150.0,0.00024381,2]
[377947284,1754623858675,-245.073,0.00024381,2]
[377947285,1754623858684,-151.0,0.00024381,7]
[377947286,1754623858694,-152.395114,0.00024381,7]
[377947287,1754623858704,-151.0,0.00024381,7]
[377947288,1754623858714,-151.0,0.00024381,7]
[377947289,1754623858723,-151.0,0.00024381,7]
[377947290,1754623858732,-151.0,0.00024381,7]
[377947291,1754623858741,-151.0,0.00024381,7]
[377947292,1754623858750,-151.0,0.00024381,7]
[377947293,1754623858759,-151.247923,0.00024381,7]
[377947294,1754623858768,-1380.021677,0.00024381,7]
[377947295,1754623858777,-1380.021677,0.00024381,7]
[377947296,1754623858786,-3000.0,0.00024382,3]
[377947297,1754623858795,-998.16793409,0.00024383,2]
[377947298,1754623858804,-1500.0,0.00024383,14]
[377947299,1754623858812,-1500.0,0.00024383,14]
[377947300,1754623858821,-1500.0,0.00024383,14]
[377947301,1754623858831,-1500.0,0.00024383,14]
[377947302,1754623858839,-1500.0,0.00024383,14]
[377947303,1754623858849,-1500.0,0.00024383,14]
[377947304,1754623858858,-1100.396297,0.00024383,14]
[377947305,1754623858873,-180.146236,0.00024383,7]
[377947306,1754623858882,-180.146236,0.00024383,7]
[377947307,1754623858892,-151.0,0.00024383,7]
[377947308,1754623858900,-460.0,0.00024383,2]
[377947309,1754623858909,-1043.51,0.00024383,2]
[377947310,1754623858919,-501.14,0.00024383,2]
[377947311,1754623858928,-615.69,0.00024383,2]
[377947312,1754623858937,-460.0,0.00024383,2]
[377947313,1754623858948,-460.0,0.00024383,2]
[377947314,1754623858958,-460.0,0.00024383,2]
[377947315,1754623858967,-460.0,0.00024383,2]
[377947316,1754623858977,-460.0,0.00024383,2]
[377947317,1754623858985,-460.0,0.00024383,2]
[377947318,1754623858995,-477.45,0.00024383,2]
[377947319,1754623859005,-779.59,0.00024383,2]
[377947320,1754623859014,-460.0,0.00024383,2]
[377947321,1754623859023,-460.0,0.00024383,2]
[377947322,1754623859032,-460.0,0.00024383,2]
[377947323,1754623859042,-460.0,0.00024383,2]
[377947324,1754623859051,-460.0,0.00024383,2]
[377947325,1754623859060,-510.91,0.00024383,2]
[377947326,1754623859069,-460.0,0.00024383,2]
[377947327,1754623859079,-460.0,0.00024383,2]
[377947328,1754623859088,-151.0,0.0002439,7]
[377947329,1754623859098,-570.10015247,0.000244,2]
[377947330,1754623859107,-151.0,0.000244,5]
[377947331,1754623859117,-151.0,0.000244,9]
[377947332,1754623859126,-312.16666667,0.000244,7]
[377947333,1754623859135,-151.0,0.00024451,7]
[377947334,1754623859144,-306.062547,0.00024451,7]
[377947335,1754623859153,-306.062547,0.00024451,7]
[377947336,1754623859163,-500.0,0.00024473,2]
[377947337,1754623859172,-150.0,0.00024473,2]
[377947338,1754623859181,-150.0,0.00024473,2]
[377947339,1754623859190,-239459.32326651,0.00024478,2]
[377947340,1754623859200,-200.0,0.0002448,10]
[377947341,1754623859209,-3000.0,0.00024488,3]
[377947342,1754623859218,-151.911361,0.00024488,7]
[377947343,1754623859228,-151.0,0.00024488,7]
[377947344,1754623859237,-151.0,0.00024488,7]
[377947345,1754623859246,-151.0,0.00024488,7]
[377947346,1754623859255,-200.67948028,0.00024499,2]
[377947347,1754623859265,-16918.34,0.000245,2]
[377947348,1754623859274,-151.0,0.000245,6]
[377947349,1754623859283,-151.0,0.000245,7]
[377947350,1754623859292,-38241.76,0.000245,2]
[377947351,1754623859301,-151.0,0.000245,9]
[377947352,1754623859402,-151.0,0.000245,6]
[377947353,1754623859412,-151.0,0.000245,7]
[377947354,1754623859421,-151.0,0.000245,7]
[377947355,1754623859430,-306.062547,0.000245,7]
[377947356,1754623859439,-306.062547,0.000245,7]
[377947357,1754623859450,-151.0,0.000245,6]
[377947358,1754623859459,-186.131863,0.000245,7]
[377947359,1754623859468,-180.146236,0.000245,7]
[377947360,1754623859477,-180.146236,0.000245,7]
[377947361,1754623859486,-659.23009075,0.000245,2]
[377947362,1754623859496,-196.87,0.00024517,2]
[377947363,1754623859505,-360.0,0.00024539,2]
[377947364,1754623859514,-196.87,0.00024553,2]
[377947365,1754623859524,-1500.0,0.00024557,2]
[377947366,1754623859533,-350.0,0.00024557,2]
[377947367,1754623859542,-1195.20294548,0.00024557,2]
[377947368,1754623859551,-1500.0,0.00024557,2]
[377947369,1754623859561,-1500.0,0.00024557,2]
[377947370,1754623859570,-320.55028742,0.00024557,2]
[377947371,1754623859579,-1001.9550883,0.00024557,2]
[377947372,1754623859588,-261.99561543,0.00024557,2]
[377947373,1754623859598,-1500.0,0.00024557,2]
[377947374,1754623859608,-542.93700936,0.00024557,2]
[377947375,1754623859617,-514.56800997,0.00024557,2]
[377947376,1754623859627,-1500.0,0.00024557,2]
[377947377,1754623859636,-158.75346554,0.00024557,2]
[377947378,1754623859646,-1500.0,0.00024557,2]
[377947379,1754623859655,-1500.0,0.00024561,2]
[377947380,1754623859664,-4000.0,0.00024562,3]
[377947381,1754623859674,-151.0,0.00024562,7]
[377947382,1754623859683,-371.91064307,0.0002457,2]
[377947383,1754623859693,-1327.41121205,0.0002457,2]
[377947384,1754623859702,-972.698,0.00024572,2]
[377947385,1754623859711,-636.0,0.00024572,2]
[377947386,1754623859721,-2149.0,0.00024572,2]
[377947387,1754623859730,-408.0,0.00024572,2]
[377947388,1754623859739,-414.462,0.00024572,2]
[377947389,1754623859748,-1232.11285859,0.00024586,2]
[377947390,1754623859757,-506.0881822,0.00024586,2]
[377947391,1754623859766,-5888.0,0.00024589,2]
[377947392,1754623859775,-196.87,0.0002459,2]
[377947393,1754623859784,-151.35325,0.000246,7]
[377947394,1754623859793,-222.575549,0.000246,7]
[377947395,1754623859802,-151.0,0.000246,5]
[377947396,1754623859811,-151.0,0.000246,6]
[377947397,1754623859821,-312.16666667,0.000246,3]
[377947398,1754623859830,-12663.41139009,0.000246,3]
[377947399,1754623859839,-301.69785793,0.000246,2]
[377947400,1754623859848,-160.0,0.000246,3]
[377947401,1754623859857,-160.0,0.000246,3]
[377947402,1754623859866,-842.78739015,0.000246,3]
[377947403,1754623859875,-527.68033864,0.000246,3]
[377947404,1754623859884,-215.36146706,0.000246,3]
[377947405,1754623859893,-160.0,0.000246,3]
[377947406,1754623859903,-231.87430077,0.000246,3]
[377947407,1754623859911,-151.0,0.0002462,7]
[377947408,1754623859920,-306.062547,0.0002462,7]
[377947409,1754623859930,-306.062547,0.0002462,7]
[377947410,1754623859939,-180.146236,0.0002462,7]
[377947411,1754623859950,-180.146236,0.0002462,7]
[377947412,1754623859958,-151.3773,0.00024626,2]
[377947413,1754623859968,-151.0,0.0002463,7]
[377947414,1754623859976,-151.0,0.0002463,7]
[377947415,1754623859986,-428.439808,0.0002463,7]
[377947416,1754623859995,-151.0,0.0002463,7]
[377947417,1754623860004,-153.10355,0.0002463,7]
[377947418,1754623860013,-151.0,0.0002463,7]
[377947419,1754623860023,-151.0,0.0002463,7]
[377947420,1754623860032,-1380.021677,0.0002463,7]
[377947421,1754623860042,-1380.021677,0.0002463,7]
[377947422,1754623860052,-240841.3508893,0.0002464,7]
[377947423,1754623860062,-219.419558,0.0002464,7]
[377947424,1754623860071,-151.0,0.0002464,7]
[377947425,1754623860081,-151.0,0.0002464,7]
[377947426,1754623860091,-154.946553,0.0002464,7]
[377947427,1754623860100,-151.0,0.0002464,7]
[377947428,1754623860110,-151.0,0.0002464,7]
[377947429,1754623860119,-428.439808,0.0002464,7]
[377947430,1754623860128,-151.0,0.0002464,7]
[377947431,1754623860137,-151.0,0.0002464,7]
[377947432,1754623860146,-285.921986,0.0002464,7]
[377947433,1754623860155,-151.0,0.0002464,7]
[377947434,1754623860164,-186.171668,0.0002464,7]
[377947435,1754623860173,-1380.021677,0.0002464,7]
[377947436,1754623860183,-1380.021677,0.0002464,7]
[377947437,1754623860192,-306.062547,0.0002464,7]
[377947438,1754623860201,-306.062547,0.0002464,7]
[377947439,1754623860211,-180.146236,0.0002464,7]
[377947440,1754623860220,-180.146227,0.0002464,7]
[377947441,1754623860230,-874.57,0.00024649,2]
[377947442,1754623860239,-460.0,0.00024649,2]
[377947443,1754623860249,-1393.1,0.00024649,2]
[377947444,1754623860259,-3997.55,0.00024649,2]
[377947445,1754623860268,-460.0,0.00024649,2]
[377947446,1754623860277,-460.0,0.00024649,2]
[377947447,1754623860287,-466.28,0.00024649,2]
[377947448,1754623860296,-267881.496869,0.0002465,2]
[377947449,1754623860306,-503.7281852,0.0002465,2]
[377947450,1754623860318,-151.0,0.0002465,7]
[377947451,1754623860328,-270.571008,0.0002465,7]
[377947452,1754623860337,-151.0,0.0002465,7]
[377947453,1754623860347,-151.0,0.0002465,7]
[377947454,1754623860359,-151.0,0.0002465,7]
[377947455,1754623860368,-428.439808,0.0002465,7]
[377947456,1754623860378,-151.0,0.0002465,7]
[377947457,1754623860392,-562.33183328,0.0002465,2]
[377947458,1754623860402,-151.0,0.0002465,7]
[377947459,1754623860411,-151.0,0.0002465,7]
[377947460,1754623860420,-1380.021677,0.0002465,7]
[377947461,1754623860429,-1380.021677,0.0002465,7]
[377947462,1754623860439,-306.062547,0.0002465,7]
[377947463,1754623860450,-306.062547,0.0002465,7]
[377947464,1754623860459,-43352.11174022,0.0002465,2]
[377947465,1754623860469,-1844.01,0.00024651,2]
[377947466,1754623860479,-963.67,0.00024651,2]
[377947467,1754623860488,-460.0,0.00024651,2]
[377947468,1754623860497,-1016.62,0.00024651,2]
[377947469,1754623860506,-460.0,0.00024651,2]
[377947470,1754623860516,-460.0,0.00024651,2]
[377947471,1754623860525,-2210.65,0.00024651,2]
[377947472,1754623860534,-1381.43,0.00024651,2]
[377947473,1754623860544,-154.13746886,0.00024651,2]
[377947474,1754623860553,-634.93,0.00024651,2]
[377947475,1754623860563,-1146.4,0.00024651,2]
[377947476,1754623860573,-460.0,0.00024651,2]
[377947477,1754623860582,-153.96,0.00024652,2]
[377947478,1754623860591,-460.0,0.00024652,2]
[377947479,1754623860601,-460.0,0.00024652,2]
[377947480,1754623860610,-460.0,0.00024652,2]
[377947481,1754623860619,-460.0,0.00024652,2]
[377947482,1754623860628,-460.0,0.00024652,2]
[377947483,1754623860637,-460.0,0.00024653,2]
[377947484,1754623860646,-485.14,0.00024653,2]
[377947485,1754623860655,-2135.72,0.00024653,2]
[377947486,1754623860664,-1506.06,0.00024653,2]
[377947487,1754623860674,-460.0,0.00024653,2]
[377947488,1754623860683,-1072.78,0.00024653,2]
[377947489,1754623860692,-585.7,0.00024653,2]
[377947490,1754623860702,-707.27,0.00024653,2]
[377947491,1754623860712,-500.0,0.00024653,2]
[377947492,1754623860721,-207.51,0.00024657,2]
[377947493,1754623860730,-460.0,0.00024657,2]
[377947494,1754623860739,-465.61063068,0.00024657,2]
[377947495,1754623860749,-460.0,0.00024657,2]
[377947496,1754623860758,-1043.51,0.00024657,2]
[377947497,1754623860768,-501.14,0.00024657,2]
[377947498,1754623860777,-615.69,0.00024657,2]
[377947499,1754623860786,-460.0,0.00024657,2]
[377947500,1754623860795,-598.82693725,0.00024657,2]
[377947501,1754623860804,-460.0,0.00024657,2]
[377947502,1754623860814,-460.0,0.00024657,2]
[377947503,1754623860823,-460.0,0.00024657,2]
[377947504,1754623860832,-460.0,0.00024657,2]
[377947505,1754623860841,-477.45,0.00024657,2]
[377947506,1754623860850,-779.59,0.00024657,2]
[377947507,1754623860859,-460.0,0.00024657,2]
[377947508,1754623860868,-449.31193365,0.00024657,2]
[377947509,1754623860877,-468.9,0.00024657,2]
[377947510,1754623860886,-460.0,0.00024657,2]
[377947511,1754623860895,-388.25,0.00024657,2]
[377947512,1754623860904,-510.91,0.00024657,2]
[377947513,1754623860914,-460.0,0.00024657,2]
[377947514,1754623860924,-543.96,0.00024657,2]
[377947515,1754623860933,-500.0,0.00024658,2]
[377947516,1754623860942,-200.0,0.00024658,15]
[377947517,1754623860952,-151.0,0.00024658,7]
[377947518,1754623860961,-151.0,0.00024658,7]
[377947519,1754623860970,-151.0,0.00024658,7]
[377947520,1754623860979,-151.0,0.00024658,7]
[377947521,1754623860989,-151.0,0.00024658,7]
[377947522,1754623860999,-151.0,0.00024658,7]
[377947523,1754623861008,-219.549296,0.00024658,7]
[377947524,1754623861017,-380.0,0.00024658,2]
[377947525,1754623861026,-500.0,0.00024658,2]
[377947526,1754623861035,-501.54945444,0.00024673,2]
[377947527,1754623861044,-150.0,0.00024673,2]
[377947528,1754623861055,-151.0,0.00024673,7]
[377947529,1754623861064,-306.062547,0.00024673,7]
[377947530,1754623861074,-306.062547,0.00024673,7]
[377947531,1754623861083,-150.59680682,0.00024682,7]
[377947532,1754623861093,-542.0,0.00024683,2]
[377947533,1754623861102,-151.0,0.000247,7]
[377947534,1754623861199,-151.0,0.000247,7]
[377947535,1754623861210,-151.0,0.000247,7]
[377947536,1754623861220,-428.439808,0.000247,7]
[377947537,1754623861229,-151.0,0.000247,6]
[377947538,1754623861238,-151.0,0.000247,9]
[377947539,1754623861248,-151.0,0.000247,7]
[377947540,1754623861257,-1380.021677,0.000247,7]
[377947541,1754623861266,-1380.021677,0.000247,7]
[377947542,1754623861276,-5566.0,0.00024712,2]
[377947543,1754623861285,-151.0,0.0002475,7]
[377947544,1754623861295,-306.062547,0.0002475,7]
[377947545,1754623861304,-306.062547,0.0002475,7]
[377947546,1754623861316,-1096.28389978,0.00024774,2]
[377947547,1754623861326,-542.0,0.00024788,2]
[377947548,1754623861335,-151.0,0.00024798,7]
[377947549,1754623861344,-151.0,0.00024798,7]
[377947550,1754623861356,-428.439808,0.00024798,7]
[377947551,1754623861366,-151.0,0.00024798,7]
[377947552,1754623861375,-152.895516,0.00024798,7]
[377947553,1754623861387,-1380.021677,0.00024798,7]
[377947554,1754623861396,-1380.021677,0.00024798,7]
[377947555,1754623861405,-306.062547,0.00024798,7]
[377947556,1754623861416,-306.062545,0.00024798,7]
[377947557,1754623861427,-946.823596,0.00024798,7]
[377947558,1754623861436,-1000.0,0.000248,10]
[377947559,1754623861446,-1297.0,0.00024809,2]
[377947560,1754623861455,-151.0,0.00024817,2]
[377947561,1754623861465,-5566.0,0.00024846,2]
[377947562,1754623861474,-2549.83960864,0.00024864,2]
[377947563,1754623861483,-2500.0,0.00024864,2]
[377947564,1754623861493,-1053.35483758,0.00024864,2]
[377947565,1754623861502,-151.0,0.0002489,7]
[377947566,1754623861511,-151.0,0.0002489,7]
[377947567,1754623861523,-428.439808,0.0002489,7]
[377947568,1754623861533,-151.0,0.00024893,7]
[377947569,1754623861542,-1380.021677,0.00024893,7]
[377947570,1754623861552,-1380.021677,0.00024893,7]
[377947571,1754623861561,-946.823596,0.00024893,7]
[377947572,1754623861571,-1646.78862384,0.00024896,2]
[377947573,1754623861580,-245.75373464,0.00024896,2]
[377947574,1754623861589,-1500.0,0.00024896,2]
[377947575,1754623861599,-158.0,0.000249,3]
[377947576,1754623861609,-158.0,0.000249,4]
[377947577,1754623861618,-164.14726886,0.000249,5]
[377947578,1754623861628,-151.0,0.000249,7]
[377947579,1754623861638,-152.869295,0.000249,7]
[377947580,1754623861647,-428.439808,0.000249,7]
[377947581,1754623861656,-151.0,0.000249,7]
[377947582,1754623861665,-1380.021677,0.000249,7]
[377947583,1754623861675,-1380.021677,0.000249,7]
[377947584,1754623861684,-946.823596,0.000249,7]
[377947585,1754623861694,-190.77522689,0.000249,2]
[377947586,1754623861703,-29776.71712098,0.000249,2]
[377947587,1754623861795,-352.56458027,0.000249,2]
[377947598,1754623970235,24900.0,0.00021185,2]
[377947599,1754624000937,160.0,0.000214,2]
[377947633,1754624381657,174.353715,0.00021479,2]
[377947634,1754624382203,174.353715,0.00021479,120]
[377947639,1754624558218,168.513237,0.00013699,2]
[377947662,1754624858884,1500.0,0.0003,120]